{"text_format":"3","workbook":"xlsx","n_sheets":1,"sheets":["Протокол ШЭ ВОШ по предмету"],"not_rendered":{"defined_names":1},"read":"whole","date_system":"1900"}

{"sheet":"Протокол ШЭ ВОШ по предмету","index":0,"n_rows":23,"n_cols":15,"rows_kept":23}
["№","Фамилия","Имя","Отчество","Дата рождения","Пол","Участник с ОВЗ (да/нет)","Класс обучения","Класс участия","Балл","Максимальный балл","Статус","Призёр муниципального этапа прошлого года","ФИО учителя","Место работы учителя"]
[1,"Фасахов ","Амир","Альфредович","2011-09-24","М","нет",5,5,63,100,"Призер","нет","Михеев Эдуард Рафаильевич","Муниципальное бюджетное общеобразовательное учреждение \"Гимназия №52\" г.Казани Республики Татарстан"]
[2,"Фазлеева","Алиса","Искандеровна","2011-01-26","Ж","нет",5,5,65,100,"победитель","нет",{"$f":"$N$2","v":"Михеев Эдуард Рафаильевич"},{"$f":"$O$2","v":"Муниципальное бюджетное общеобразовательное учреждение \"Гимназия №52\" г.Казани Республики Татарстан"}]
[3,"Михеева","Софья ","Эдуардовна","2011-11-01","Ж","нет",5,5,60,100,"призёр","нет","Михеева Диляра Фаридовна",{"$f":"$O$2","v":"Муниципальное бюджетное общеобразовательное учреждение \"Гимназия №52\" г.Казани Республики Татарстан"}]
[4,"Хасанова ","Зарина","Ильнаровна","2011-04-11","Ж","нет",5,5,60,100,"призёр","нет","Михеева Диляра Фаридовна","Муниципальное бюджетное общеобразовательное учреждение \"Гимназия №52\" г.Казани Республики Татарстан"]
[5,"Дворникова ","Кира","Максимовна","2010-11-20","Ж","нет",6,6,66,100,"Призер","нет","Ажниязова Надия Булатовна","Муниципальное бюджетное общеобразовательное учреждение \"Гимназия №52\" г.Казани Республики Татарстан"]
[6,"Галеева ","Камилла","Рамисовна","2010-10-21","Ж","нет",6,6,72,100,"Победитель","нет",{"$f":"$N$2","v":"Михеев Эдуард Рафаильевич"},"Муниципальное бюджетное общеобразовательное учреждение \"Гимназия №52\" г.Казани Республики Татарстан"]
[7,"Посохов","Эмиль ","Владимирович","2010-06-21","М","нет",6,6,70,100,"призёр","нет",{"$f":"$N$2","v":"Михеев Эдуард Рафаильевич"},"Муниципальное бюджетное общеобразовательное учреждение \"Гимназия №52\" г.Казани Республики Татарстан"]
[8,"Люлько ","Алексей","Михайлович","2009-06-08","М","нет",7,7,74,100,"Победитель","нет","Михеева Диляра Фаридовна","Муниципальное бюджетное общеобразовательное учреждение \"Гимназия №52\" г.Казани Республики Татарстан"]
[9,"Гатауллин","Данис","Даниэлевич","2009-06-01","М","нет",7,7,71.5,100,"Призер","нет","Михеева Диляра Фаридовна","Муниципальное бюджетное общеобразовательное учреждение \"Гимназия №52\" г.Казани Республики Татарстан"]
[10,"Мазеев ","Руслан","Радикович","2010-02-25","М","нет",7,7,68,100,"призёр","нет","Михеева Диляра Фаридовна","Муниципальное бюджетное общеобразовательное учреждение \"Гимназия №52\" г.Казани Республики Татарстан"]
[11,"Михайло","Снежана","Юрьевна","2009-07-08","Ж","нет",7,7,64,100,"призёр","нет","Михеева Диляра Фаридовна","Муниципальное бюджетное общеобразовательное учреждение \"Гимназия №52\" г.Казани Республики Татарстан"]
[12,"Улуг","Азиза","Левентовна","2008-11-22","Ж","нет",7,7,65.5,100,"призёр","нет","Михеева Диляра Фаридовна","Муниципальное бюджетное общеобразовательное учреждение \"Гимназия №52\" г.Казани Республики Татарстан"]
[13,"Батанова","Милана","Маратовна","2010-01-25","Ж","нет",7,7,"74.5",100,"Победитель","да","Михеева Диляра Фаридовна","Муниципальное бюджетное общеобразовательное учреждение \"Гимназия №52\" г.Казани Республики Татарстан"]
[14,"Балуева","Карина","Андреевна","2009-08-20","Ж","нет",7,7,70,100,"Призер","нет","Михеева Диляра Фаридовна","Муниципальное бюджетное общеобразовательное учреждение \"Гимназия №52\" г.Казани Республики Татарстан"]
[15,"Тямаева","Агилина","Рустемовна","2008-10-26","Ж","нет",8,8,63,100,"призёр","нет",{"$f":"$N$2","v":"Михеев Эдуард Рафаильевич"},"Муниципальное бюджетное общеобразовательное учреждение \"Гимназия №52\" г.Казани Республики Татарстан"]
[16,"Лисицина ","Диана","Денисовна","2007-06-05","Ж","нет",9,9,69,100,"призёр","нет","Михеева Диляра Фаридовна","Муниципальное бюджетное общеобразовательное учреждение \"Гимназия №52\" г.Казани Республики Татарстан"]
[17,"Коновалов","Михаил","Евгеньевич","2005-08-18","М","нет",11,11,79,100,"Призер","да",{"$f":"$N$2","v":"Михеев Эдуард Рафаильевич"},"Муниципальное бюджетное общеобразовательное учреждение \"Гимназия №52\" г.Казани Республики Татарстан"]
[18,"Николич","Аурика","Войиславовна","2005-08-29","Ж","нет",11,11,79,100,"Победитель","нет","Михеева Диляра Фаридовна","Муниципальное бюджетное общеобразовательное учреждение \"Гимназия №52\" г.Казани Республики Татарстан"]
[19,"Салихов","Мурад","Дистахович","2005-02-24","М","нет",11,11,79.5,100,"Победитель","нет",{"$f":"$N$2","v":"Михеев Эдуард Рафаильевич"},"Муниципальное бюджетное общеобразовательное учреждение \"Гимназия №52\" г.Казани Республики Татарстан"]
[20,"Низамутдинов","Амир","Айратович","2005-12-08","М","нет",11,11,71,100,"призёр","нет",{"$f":"$N$2","v":"Михеев Эдуард Рафаильевич"},"Муниципальное бюджетное общеобразовательное учреждение \"Гимназия №52\" г.Казани Республики Татарстан"]
[21,"Маликов ","Айдар","Ильдарович","2005-02-08","М","нет",11,11,73,100,"призёр","нет","Михеев Эдуард Рафаильевич","Муниципальное бюджетное общеобразовательное учреждение \"Гимназия №52\" г.Казани Республики Татарстан"]
[22,"Бородкин","Никита","Александрович","2005-05-14","М","нет",11,11,68,100,"призёр","нет","Михеев Эдуард Рафаильевич","Муниципальное бюджетное общеобразовательное учреждение \"Гимназия №52\" г.Казани Республики Татарстан"]